{"text_format":"3","workbook":"xlsx","n_sheets":2,"sheets":["Inizio","Redditività cliente"],"not_rendered":{"charts":1},"read":"whole","date_system":"1900"}

{"sheet":"Inizio","index":0,"n_rows":7,"n_cols":2,"rows_kept":7}
[null,"INFORMAZIONI SU QUESTO MODELLO"]
[null,"È possibile usare questa analisi sulla redditività cliente per tenere traccia delle attività cliente, dei costo del venduto e di altri costi."]
[null,"Immettere nella tabella informazioni quali il nome società e la data di costituzione insieme ai dettagli."]
[null,"I valori nelle celle contenenti formule e la tabella metriche di riepilogo vengono calcolati automaticamente e aggiornano il grafico."]
[null,"Nota:  "]
[null,"Altre istruzioni sono state fornite nella colonna A nel foglio di lavoro REDDITIVITÀ CLIENTE. Questo testo è stato nascosto intenzionalmente. Per rimuovere il testo, selezionare la colonna A, quindi scegliere ELIMINA. Per visualizzare il testo, selezionare la colonna A, quindi modificare il colore del carattere."]
[null,"Per ulteriori informazioni su questa tabella del foglio di lavoro, premere MAIUSC, quindi F10 in una tabella, selezionare l'opzione TABELLA, quindi selezionare TESTO ALTERNATIVO."]

{"sheet":"Redditività cliente","index":1,"n_rows":37,"n_cols":6,"rows_kept":37,"merged":[[36,1,36,5]]}
["Creare l'analisi redditività cliente nel foglio di lavoro. Istruzioni utili per l'uso di questo foglio di lavoro si trovano nelle celle di questa colonna. Freccia verso il basso per iniziare."]
["Immettere il nome società nella cella a destra.","Nome società"]
["Il titolo di questo foglio di lavoro è nella cella a destra.","Analisi redditività cliente"]
["Immettere la data nella cella a destra.","Data"]
["I suggerimenti si trovano nella cella a destra.","Le celle grigie vengono calcolate automaticamente. Non è necessario immettervi alcun dato."]
["Immettere i dettagli nella tabella dell'attività cliente a partire dalla cella a destra. L'istruzione successiva si trova nella cella A12.","Attività cliente:","Nome segmento 1","Nome segmento 2","Nome segmento 3","Risultato complessivo"]
[null,"Numero di clienti attivi, inizio periodo",5,8,8,{"$f":"SUM(C7:E7)","v":21}]
[null,"Numero di clienti aggiunti",2,4,4,{"$f":"SUM(C8:E8)","v":10}]
[null,"Numero di clienti persi/rapporto terminato",{"v":-1,"d":"-1 "},{"v":-2,"d":"-2 "},{"v":-2,"d":"-2 "},{"$f":"SUM(C9:E9)","v":{"v":-5,"d":"-5 "}}]
[null,"Numero di clienti attivi, fine periodo",{"$f":"SUBTOTAL(109,AttivitàCliente[Nome segmento 1])","v":6},{"$f":"SUBTOTAL(109,AttivitàCliente[Nome segmento 2])","v":10},{"$f":"SUBTOTAL(109,AttivitàCliente[Nome segmento 3])","v":10},{"$f":"SUBTOTAL(109,AttivitàCliente[Risultato complessivo])","v":26}]
[]
["Immettere i dettagli nella tabella dell'analisi redditività a partire dalla cella a destra. L'istruzione successiva si trova nella cella A16.","Analisi redditività:","Nome segmento 1","Nome segmento 2","Nome segmento 3","Risultato complessivo"]
[null,"Ricavi per segmento",{"v":1500000,"d":"€ 1,500,000.00"},{"v":1800000,"d":"€ 1,800,000.00"},{"v":2500000,"d":"€ 2,500,000.00"},{"$f":"SUM(AnalisiRedditività[[#This Row],[Nome segmento 1]:[Nome segmento 3]])","v":{"v":5800000,"d":"€ 5,800,000.00"}}]
[null,"Ponderazione",{"$f":"+C13/$F$13","v":{"v":0.25862068965517243,"d":"26%"}},{"$f":"+D13/$F$13","v":{"v":0.3103448275862069,"d":"31%"}},{"$f":"+E13/$F$13","v":{"v":0.43103448275862066,"d":"43%"}},{"$f":"SUM(AnalisiRedditività[[#This Row],[Nome segmento 1]:[Nome segmento 3]])","v":{"v":1,"d":"100%"}}]
[]
["Immettere i dettagli nella tabella del costo del venduto a partire dalla cella a destra. L'istruzione successiva si trova nella cella A23.","Costo del venduto:","Nome segmento 1","Nome segmento 2","Nome segmento 3","Risultato complessivo"]
[null,"Costi di servizi e assistenza continuativi",{"v":1000000,"d":"€ 1,000,000.00"},{"v":1400000,"d":"€ 1,400,000.00"},{"v":1400000,"d":"€ 1,400,000.00"},{"$f":"SUM(C17:E17)","v":{"v":3800000,"d":"€ 3,800,000.00"}}]
[null,"Costi di altri clienti diretti",{"v":200000,"d":"€ 200,000.00"},{"v":100000,"d":"€ 100,000.00"},{"v":100000,"d":"€ 100,000.00"},{"$f":"SUM(C18:E18)","v":{"v":400000,"d":"€ 400,000.00"}}]
[null,"Costo totale del venduto",{"$f":"SUM(C17:C18)","v":{"v":1200000,"d":"€ 1,200,000.00"}},{"$f":"SUM(D17:D18)","v":{"v":1500000,"d":"€ 1,500,000.00"}},{"$f":"SUM(E17:E18)","v":{"v":1500000,"d":"€ 1,500,000.00"}},{"$f":"SUM(F17:F18)","v":{"v":4200000,"d":"€ 4,200,000.00"}}]
[null,"Profitto lordo",{"$f":"+C13-C19","v":{"v":300000,"d":"€ 300,000.00"}},{"$f":"+D13-D19","v":{"v":300000,"d":"€ 300,000.00"}},{"$f":"+E13-E19","v":{"v":1000000,"d":"€ 1,000,000.00"}},{"$f":"+F13-F19","v":{"v":1600000,"d":"€ 1,600,000.00"}}]
[null,"Ponderazione",{"$f":"MAX(0, MIN(1,C20/$F$20))","v":{"v":0.1875,"d":"19%"}},{"$f":"MAX(0, MIN(1,D20/$F$20))","v":{"v":0.1875,"d":"19%"}},{"$f":"MAX(0, MIN(1,E20/$F$20))","v":{"v":0.625,"d":"63%"}},{"$f":"SUM(C21:E21)","v":{"v":1,"d":"100%"}}]
[]
["Immettere i dettagli nella tabella degli altri costi a partire dalla cella a destra. L'istruzione successiva si trova nella cella A31.","Altri costi:","Nome segmento 1","Nome segmento 2","Nome segmento 3","Risultato complessivo"]
[null,"Acquisizione clienti",{"v":105000,"d":"€ 105,000.00"},{"v":120000,"d":"€ 120,000.00"},{"v":235000,"d":"€ 235,000.00"},{"$f":"SUM(AltriCosti[[#This Row],[Nome segmento 1]:[Nome segmento 3]])","v":{"v":460000,"d":"€ 460,000.00"}}]
[null,"Marketing clienti",{"v":150000,"d":"€ 150,000.00"},{"v":125000,"d":"€ 125,000.00"},{"v":275000,"d":"€ 275,000.00"},{"$f":"SUM(C25:E25)","v":{"v":550000,"d":"€ 550,000.00"}}]
[null,"Terminazione rapporto clienti",{"v":80000,"d":"€ 80,000.00"},{"v":190000,"d":"€ 190,000.00"},{"v":140000,"d":"€ 140,000.00"},{"$f":"SUM(C26:E26)","v":{"v":410000,"d":"€ 410,000.00"}}]
[null,"Totale costi altri clienti",{"$f":"SUM(C24:C26)","v":{"v":335000,"d":"€ 335,000.00"}},{"$f":"SUM(D24:D26)","v":{"v":435000,"d":"€ 435,000.00"}},{"$f":"SUM(E24:E26)","v":{"v":650000,"d":"€ 650,000.00"}},{"$f":"SUM(F24:F26)","v":{"v":1420000,"d":"€ 1,420,000.00"}}]
[null,"Profitto cliente per segmento",{"$f":"+C20-C27","v":{"v":-35000,"d":"-€ 35,000.00"}},{"$f":"+D20-D27","v":{"v":-135000,"d":"-€ 135,000.00"}},{"$f":"+E20-E27","v":{"v":350000,"d":"€ 350,000.00"}},{"$f":"SUM(C28:E28)","v":{"v":180000,"d":"€ 180,000.00"}}]
[null,"Ponderazione",{"$f":"MAX(0,MIN(1, C28/$F$28))","v":{"v":0,"d":"0%"}},{"$f":"MAX(0,MIN(1, D28/$F$28))","v":{"v":0,"d":"0%"}},{"$f":"MAX(0,MIN(1, E28/$F$28))","v":{"v":1,"d":"100%"}},{"$f":"SUM(C29:E29)","v":{"v":1,"d":"100%"}}]
[]
["La tabella delle metriche di riepilogo viene aggiornata automaticamente a partire dalla cella a destra. L'istruzione successiva si trova nella cella A37.","Metriche di riepilogo:","Nome segmento 1","Nome segmento 2","Nome segmento 3","Tendenza"]
[null,"Costo medio per cliente acquisito",{"$f":"+C24/C8","v":{"v":52500,"d":"€ 52,500.00"}},{"$f":"+D24/D8","v":{"v":30000,"d":"€ 30,000.00"}},{"$f":"+E24/E8","v":{"v":58750,"d":"€ 58,750.00"}}]
[null,"Costo medio per cliente con rapporto terminato",{"$f":"-C26/C9","v":{"v":80000,"d":"€ 80,000.00"}},{"$f":"-D26/D9","v":{"v":95000,"d":"€ 95,000.00"}},{"$f":"-E26/E9","v":{"v":70000,"d":"€ 70,000.00"}}]
[null,"Costo medio marketing per cliente attivo",{"$f":"+C26/AttivitàCliente[[#Totals],[Nome segmento 1]]","v":{"v":13333.333333333334,"d":"€ 13,333.33"}},{"$f":"+D25/AttivitàCliente[[#Totals],[Nome segmento 2]]","v":{"v":12500,"d":"€ 12,500.00"}},{"$f":"+E25/AttivitàCliente[[#Totals],[Nome segmento 3]]","v":{"v":27500,"d":"€ 27,500.00"}}]
[null,"Profitto medio (perdite) per cliente",{"$f":"+C29/AttivitàCliente[[#Totals],[Nome segmento 1]]","v":{"v":0,"d":"€ 0.00"}},{"$f":"+D28/AttivitàCliente[[#Totals],[Nome segmento 2]]","v":{"v":-13500,"d":"-€ 13,500.00"}},{"$f":"+E28/AttivitàCliente[[#Totals],[Nome segmento 3]]","v":{"v":35000,"d":"€ 35,000.00"}}]
[]
["L'istogramma a colonne raggruppate che indica le metriche di riepilogo per segmento cliente è nella cella a destra.","L'istogramma a colonne raggruppate che indica le metriche di riepilogo per ogni segmento cliente è in questa cella."]